bitfinex/quotes_BTCUSD_20251207
["timestamp","ask_amount","ask_price","bid_price","bid_amount"]
[1765126778340,0.00139215,89730.0,89729.0,0.39899909]
[1765126778664,0.00139215,89730.0,89729.0,0.42123476]
[1765126779021,0.00139215,89730.0,89729.0,0.39899909]
[1765126779519,0.00139215,89730.0,89729.0,0.40199909]
[1765126779712,0.00139215,89730.0,89729.0,0.42423476]
[1765126780177,0.00024087,89737.0,89736.0,0.56811166]
[1765126780375,0.00024087,89737.0,89736.0,0.93069275]
[1765126780597,0.00024087,89737.0,89736.0,0.88565875]
[1765126780800,0.00989,89771.0,89767.0,0.01113995]
[1765126780945,0.00031767,89770.0,89768.0,0.22279587]
[1765126781309,0.00031767,89770.0,89767.0,0.01113995]
[1765126781452,0.01145724,89770.0,89767.0,0.01113995]
[1765126781652,0.00031767,89770.0,89767.0,0.01113995]
[1765126781858,0.01613,89768.0,89765.0,0.23394197]
[1765126782080,0.01613,89768.0,89765.0,0.01114019]
[1765126782296,0.01613,89768.0,89766.0,0.2228015]
[1765126782797,0.00231767,89770.0,89766.0,0.2228015]
[1765126782798,0.00331767,89770.0,89768.0,0.22279654]
[1765126783392,0.00231767,89770.0,89768.0,0.22279654]
[1765126783591,0.00031767,89770.0,89768.0,0.22279654]
[1765126784242,0.00031767,89770.0,89767.0,0.01113995]
[1765126784398,0.01613,89768.0,89765.0,0.23394417]
[1765126784597,0.01613,89768.0,89765.0,0.01114019]
[1765126784798,0.01345724,89770.0,89766.0,0.01114007]
[1765126785052,0.01613,89766.0,89764.0,0.01114032]
[1765126785257,0.00231767,89770.0,89766.0,0.01114007]
[1765126785539,0.00031767,89770.0,89769.0,0.01149]
[1765126785689,0.00031767,89770.0,89769.0,0.02746]
[1765126786040,0.00031767,89770.0,89769.0,0.05205]
[1765126786187,0.00031767,89770.0,89769.0,0.02746]
[1765126786402,0.04072767,89770.0,89758.0,0.02964195]
[1765126786603,0.02648,89759.0,89756.0,0.01114131]
[1765126786850,0.01113982,89768.0,89761.0,0.01114069]
[1765126787087,0.00231767,89770.0,89767.0,0.03859995]
[1765126787294,9e-05,89803.0,89767.0,0.03859995]
[1765126787295,0.0111356,89802.0,89779.0,0.54576924]
[1765126787440,0.01122548,89803.0,89797.0,0.01113622]
[1765126787441,9e-05,89803.0,89797.0,0.01113622]
[1765126787679,0.00020763,89803.0,89802.0,0.01149]
[1765126787849,0.01113573,89801.0,89795.0,0.01149]
[1765126788051,0.01113598,89799.0,89795.0,0.01113647]
[1765126788257,0.00020763,89803.0,89800.0,0.23385299]
[1765126788592,0.00020763,89803.0,89802.0,0.23868218]
[1765126788960,0.00020763,89803.0,89802.0,0.25488505]
[1765126789158,0.00020763,89803.0,89802.0,0.23029505]
[1765126789360,0.00020763,89803.0,89802.0,0.01597]
[1765126789743,0.00720763,89803.0,89802.0,0.01597]
[1765126789943,0.00720763,89803.0,89800.0,0.24534236]
[1765126790215,0.00720763,89803.0,89800.0,0.02262585]
[1765126790485,0.00720763,89803.0,89799.0,0.01113598]
[1765126790633,0.00720763,89803.0,89800.0,0.01113585]
[1765126790831,0.01113585,89800.0,89797.0,0.01149]
[1765126791034,0.01113684,89792.0,89788.0,0.02262734]
[1765126791233,0.2338665,89795.0,89786.0,0.01113759]
[1765126791234,0.01113697,89791.0,89786.0,0.01113759]
[1765126791493,0.23391352,89777.0,89774.0,0.02960347]
[1765126791650,0.01113858,89778.0,89775.0,0.01113895]
[1765126791853,0.01113809,89782.0,89777.0,0.01113871]
[1765126792212,0.01113821,89781.0,89778.0,0.01113858]
[1765126792535,0.02114796,89783.0,89778.0,0.01113858]
[1765126792847,0.02114796,89783.0,89778.0,0.23390864]
[1765126792848,0.01113796,89783.0,89778.0,0.23390864]
[1765126793047,0.01113796,89783.0,89780.0,0.01113833]
[1765126793276,0.01113684,89792.0,89788.0,0.01113734]
[1765126793486,0.02114635,89796.0,89792.0,0.01113684]
[1765126793685,0.01113573,89801.0,89798.0,0.0111361]
[1765126793893,0.00020763,89803.0,89799.0,0.01113598]
[1765126794093,0.00020763,89803.0,89800.0,0.01113585]
[1765126794506,0.00020763,89803.0,89800.0,0.25844102]
[1765126794714,0.00020763,89803.0,89802.0,0.01597]
[1765126794920,0.00020763,89803.0,89802.0,0.01758287]
[1765126795112,0.00020763,89803.0,89802.0,0.06440854]
[1765126795519,0.00020763,89803.0,89802.0,0.0657514]
[1765126795929,0.00020763,89803.0,89802.0,0.44059054]
[1765126796102,0.00320763,89803.0,89802.0,0.48087786]
[1765126796302,0.00320763,89803.0,89802.0,0.50311353]
[1765126796508,0.00020763,89803.0,89802.0,0.50311353]
[1765126796823,0.00020763,89803.0,89802.0,0.51211353]
[1765126797002,0.00020763,89803.0,89802.0,0.51411353]
[1765126797202,0.00020763,89803.0,89802.0,0.50511353]
[1765126797505,0.0111273,89869.0,89844.0,0.56784374]
[1765126797734,0.00071311,89845.0,89844.0,0.65127514]
[1765126797977,0.01112718,89870.0,89844.0,0.65127514]
[1765126797978,32.46416883,89898.0,89897.0,0.23360067]
[1765126798144,32.46428649,89898.0,89897.0,1.0574762]
[1765126798344,32.46428649,89898.0,89897.0,1.09779462]
[1765126798546,32.4068762,89898.0,89897.0,1.12568752]
[1765126798749,32.3918762,89898.0,89897.0,1.14792319]
[1765126798931,31.84750731,89898.0,89897.0,1.15907514]
[1765126799155,30.77275437,89898.0,89897.0,1.18007955]
[1765126799363,30.70557704,89898.0,89897.0,1.01619258]
[1765126799699,30.63884874,89898.0,89897.0,0.98797782]
[1765126799873,30.60448459,89898.0,89897.0,1.03151459]
[1765126800072,30.09470913,89898.0,89897.0,1.08899995]
[1765126800445,29.7262629,89898.0,89897.0,1.01746802]
[1765126800623,29.7262629,89898.0,89897.0,1.01060062]
[1765126800912,29.7262629,89898.0,89897.0,1.04793332]
[1765126801142,29.7282629,89898.0,89897.0,0.97870785]
[1765126801274,29.7282629,89898.0,89897.0,0.80423063]
[1765126801474,29.7272629,89898.0,89897.0,0.81395063]
[1765126801879,29.7282629,89898.0,89897.0,0.82095063]
[1765126802460,29.7272629,89898.0,89897.0,0.77285034]
[1765126802679,29.7252629,89898.0,89897.0,0.68913834]
[1765126802899,29.7252629,89898.0,89897.0,0.28183634]
[1765126802900,29.7262629,89898.0,89897.0,0.28183634]
[1765126803081,29.7262629,89898.0,89897.0,0.29955634]
[1765126803413,29.7262629,89898.0,89897.0,0.29455634]
[1765126803670,29.72685474,89898.0,89897.0,0.59655634]
[1765126803870,29.72685474,89898.0,89897.0,0.70127034]
[1765126804072,29.72785474,89898.0,89897.0,0.72027034]
[1765126804300,29.72685474,89898.0,89897.0,0.68355034]
[1765126804579,29.72685474,89898.0,89897.0,0.67831667]
[1765126804774,29.72685474,89898.0,89897.0,0.68331667]
[1765126804988,29.72685474,89898.0,89897.0,0.70555234]
[1765126805154,29.72785474,89898.0,89897.0,0.71955234]
[1765126805356,29.72785474,89898.0,89897.0,0.71455234]
[1765126805576,29.21557215,89898.0,89897.0,0.7816882]
[1765126805974,29.21557215,89898.0,89897.0,0.83201119]
[1765126806175,29.21457215,89898.0,89897.0,0.84380441]
[1765126806377,29.21457215,89898.0,89897.0,0.84680441]
[1765126806710,29.21457215,89898.0,89897.0,0.86280441]
[1765126806711,29.21557215,89898.0,89897.0,0.86280441]
[1765126806862,28.70729596,89898.0,89897.0,0.84680441]
[1765126807065,28.70729596,89898.0,89897.0,0.86480441]
[1765126807267,28.70420272,89898.0,89897.0,0.86480441]
[1765126807582,28.70420272,89898.0,89897.0,0.78371256]
[1765126807785,28.70620272,89898.0,89897.0,0.28383634]
[1765126807973,28.70620272,89898.0,89897.0,0.25860067]
[1765126808354,28.70620272,89898.0,89897.0,0.04012384]
[1765126808664,28.70620272,89898.0,89897.0,0.029]
[1765126808852,28.70620272,89898.0,89897.0,0.025]
[1765126809084,28.70620272,89898.0,89897.0,0.04823567]
[1765126809286,28.70620272,89898.0,89897.0,0.74065654]
[1765126809532,28.70620272,89898.0,89897.0,1.06365654]
[1765126809734,28.70320272,89898.0,89897.0,0.52882667]
[1765126809928,28.70320272,89898.0,89897.0,0.50560867]
[1765126810239,28.70320272,89898.0,89897.0,0.51360867]
[1765126810538,28.70320272,89898.0,89897.0,0.50560867]
[1765126810742,28.70320272,89898.0,89897.0,0.36295567]
[1765126810743,28.70520272,89898.0,89897.0,0.36295567]
[1765126810898,28.70320272,89898.0,89897.0,0.36295567]
[1765126811100,28.70320272,89898.0,89897.0,0.323]
[1765126811322,28.70320272,89898.0,89897.0,0.36495567]
[1765126811499,28.70320272,89898.0,89897.0,0.36395567]
[1765126811722,28.70320272,89898.0,89897.0,0.02323567]
[1765126811885,28.70320272,89898.0,89897.0,0.03995567]
[1765126812091,28.70320272,89898.0,89897.0,0.02423567]
[1765126812656,28.70320272,89898.0,89897.0,0.02223567]
[1765126813081,28.70320272,89898.0,89897.0,0.002]
[1765126813265,28.77351272,89898.0,89897.0,0.001]
[1765126813479,28.77551272,89898.0,89897.0,0.001]
[1765126813705,28.79323272,89898.0,89897.0,0.001]
[1765126813914,0.01112693,89872.0,89858.0,0.01112866]
[1765126814150,0.25783238,89870.0,89865.0,0.02223567]
[1765126814359,0.02782,89871.0,89865.0,0.02223567]
[1765126814563,0.02782,89871.0,89866.0,0.01112767]
[1765126814775,0.02782,89871.0,89865.0,0.02223567]
[1765126814776,0.03894705,89871.0,89865.0,0.02223567]
[1765126814985,0.0111278,89865.0,89858.0,0.01112866]
[1765126815213,0.01112755,89867.0,89856.0,0.01112891]
[1765126815417,0.0001176,89865.0,89859.0,0.01112854]
[1765126815632,0.01112928,89853.0,89846.0,0.01113015]
[1765126815840,0.01112978,89849.0,89838.0,0.01113114]
[1765126816048,0.03895052,89843.0,89832.0,0.01113189]
[1765126816251,0.02782,89843.0,89839.0,0.01703123]
[1765126816457,0.01113065,89842.0,89839.0,0.01703123]
[1765126816699,0.01113189,89832.0,89822.0,0.01113312]
[1765126816900,0.01113189,89832.0,89824.0,0.01113288]
[1765126817091,0.02782,89843.0,89834.0,0.01113164]
[1765126817296,0.01113213,89830.0,89826.0,0.02223567]
[1765126817507,0.07031,89842.0,89816.0,0.01113387]
[1765126817508,0.01113263,89826.0,89816.0,0.01113387]
[1765126817712,0.01113374,89817.0,89810.0,0.01113461]
[1765126817935,0.01113201,89831.0,89821.0,0.01113325]
[1765126818124,0.01113275,89825.0,89818.0,0.01113362]
[1765126818330,0.01113114,89838.0,89832.0,0.01113189]
[1765126818539,0.01772,89832.0,89830.0,0.01113213]
[1765126818741,0.01113251,89827.0,89821.0,0.01113325]
[1765126818943,0.01113226,89829.0,89823.0,0.011133]
[1765126819143,0.01113226,89829.0,89824.0,0.01113288]
[1765126819385,0.01113238,89828.0,89823.0,0.011133]
[1765126819557,0.01113213,89830.0,89819.0,0.0111335]
[1765126819759,0.01113213,89830.0,89823.0,0.011133]
[1765126819961,0.01772,89832.0,89825.0,0.01113275]
[1765126820166,0.01,89829.0,89826.0,0.01113263]
[1765126820324,0.01772,89832.0,89825.0,0.01113275]
[1765126820527,0.01772,89832.0,89829.0,0.01113226]
[1765126820528,0.002,89831.0,89829.0,0.01113226]
[1765126820785,0.008,89830.0,89828.0,0.23377786]
[1765126820988,0.008,89830.0,89827.0,0.01113251]
[1765126821410,0.01113238,89828.0,89824.0,0.02223567]
[1765126821611,0.008,89830.0,89827.0,0.01113251]
[1765126821815,0.04694,89825.0,89816.0,0.01113387]
[1765126822026,0.01113213,89830.0,89823.0,0.011133]
[1765126822249,0.011,89829.0,89825.0,0.01113275]
[1765126822500,0.003,89830.0,89829.0,0.22264524]
[1765126822714,0.003,89830.0,89829.0,0.22425811]
[1765126822928,0.014,89830.0,89829.0,0.24649378]
[1765126823069,0.003,89830.0,89829.0,0.22425811]
[1765126823270,0.003,89830.0,89829.0,0.24649378]
[1765126823568,0.003,89830.0,89829.0,0.22425811]
[1765126823793,0.07031,89842.0,89831.0,0.01113201]
[1765126823794,0.01113077,89841.0,89831.0,0.01113201]
[1765126823997,0.2467052,89841.0,89810.0,0.00039225]
[1765126824312,0.0111304,89844.0,89838.0,0.01113114]
[1765126824479,0.01113089,89840.0,89832.0,0.01113189]
[1765126824675,0.01113089,89840.0,89835.0,0.01113151]
[1765126824872,0.01113127,89837.0,89834.0,0.02223567]
[1765126825074,0.01113213,89830.0,89823.0,0.011133]
[1765126825360,0.07031,89840.0,89823.0,0.011133]
[1765126825361,0.08143891,89856.0,89845.0,0.01113027]
[1765126825651,0.001,89840.0,89835.0,0.01772]
[1765126825810,0.01213089,89840.0,89835.0,0.01772]
[1765126826010,0.007,89837.0,89835.0,0.01772]
[1765126826434,0.001,89840.0,89839.0,0.22262046]
[1765126826841,0.03993755,89848.0,89842.0,0.01113065]
[1765126827015,0.02793755,89848.0,89839.0,0.23375148]
[1765126827220,0.03093755,89848.0,89841.0,0.01113077]
[1765126827467,0.03093755,89848.0,89844.0,0.0111304]
[1765126827683,0.04694,89842.0,89835.0,0.01113151]
[1765126827875,0.2337527,89839.0,89831.0,0.01113201]
[1765126828019,0.04694,89836.0,89832.0,0.01772]
[1765126828351,0.04694,89836.0,89829.0,0.01772]
[1765126828352,0.04694,89830.0,89829.0,0.01772]
[1765126828556,0.04694,89830.0,89823.0,0.00161287]
[1765126828758,0.04694,89830.0,89824.0,0.01113288]
[1765126828913,0.01113251,89827.0,89823.0,0.00161287]
[1765126829112,0.04694,89830.0,89824.0,0.01113288]
[1765126829332,0.01113176,89833.0,89828.0,0.01113238]
[1765126829543,0.01813139,89836.0,89829.0,0.01113226]
[1765126829736,0.01113164,89834.0,89829.0,0.01113226]
[1765126829937,0.01113164,89834.0,89826.0,0.01113263]
[1765126830146,0.22261,89844.0,89821.0,0.01113325]
[1765126830147,0.05807251,89827.0,89821.0,0.01113325]
[1765126830353,0.01113189,89832.0,89826.0,0.01113263]
[1765126830593,0.01113189,89832.0,89827.0,0.01113251]
[1765126830798,0.01113201,89831.0,89825.0,0.01113275]
[1765126831121,0.01113139,89836.0,89828.0,0.01113238]
[1765126831297,0.01113114,89838.0,89830.0,0.01113213]
[1765126831506,0.01113089,89840.0,89834.0,0.01113164]
[1765126831676,0.22260567,89845.0,89835.0,0.01113151]
[1765126831677,0.01113077,89841.0,89835.0,0.01113151]
[1765126832126,0.01113015,89846.0,89840.0,0.01113089]
[1765126832305,0.02793755,89848.0,89845.0,0.01113027]
[1765126832655,0.02793755,89848.0,89845.0,0.23373566]
[1765126833113,0.00011755,89848.0,89845.0,0.23373566]
[1765126833509,0.01211755,89848.0,89846.0,0.06]
[1765126833829,0.01211755,89848.0,89846.0,0.28260156]
[1765126833998,0.01211755,89848.0,89847.0,0.22260064]
[1765126834330,0.01211755,89848.0,89847.0,0.24644918]
[1765126834553,0.01511755,89848.0,89847.0,0.24644918]
[1765126834702,0.00311755,89848.0,89847.0,0.24644918]
[1765126835109,0.00511755,89848.0,89847.0,0.24644918]
[1765126835467,0.00011755,89848.0,89847.0,0.24644918]
[1765126835672,0.00011755,89848.0,89847.0,0.56944918]
[1765126835888,0.00011755,89848.0,89847.0,0.59283483]
[1765126835889,0.00411755,89848.0,89847.0,0.59283483]
[1765126836472,0.00011755,89848.0,89847.0,1.2445849]
[1765126836677,0.00085755,89848.0,89847.0,1.27800482]
[1765126836889,1e-08,89853.0,89852.0,2.60811124]
[1765126837220,1e-08,89853.0,89852.0,2.59282244]
[1765126837770,1e-08,89853.0,89852.0,2.65534543]
[1765126838191,1e-08,89853.0,89852.0,2.66034543]
[1765126838790,1e-08,89853.0,89852.0,2.68836299]
[1765126839115,0.02782,89916.0,89897.0,0.2447125]
[1765126839312,28.70161077,89898.0,89897.0,0.28581815]
[1765126839926,28.70161077,89898.0,89897.0,0.63805965]
[1765126840129,28.70161077,89898.0,89897.0,0.60881815]
[1765126840310,28.70361077,89898.0,89897.0,0.60881815]
[1765126840711,28.70161077,89898.0,89897.0,1.58434124]
[1765126840932,28.70161077,89898.0,89897.0,0.93631171]
[1765126841268,28.71061077,89898.0,89897.0,0.94880208]
[1765126841595,28.70161077,89898.0,89897.0,0.92174371]
[1765126841798,28.70161077,89898.0,89897.0,0.98318967]
[1765126842018,28.70161077,89898.0,89897.0,1.01770723]
[1765126842221,28.70161077,89898.0,89897.0,0.95491495]
[1765126842425,28.18450977,89898.0,89897.0,0.99537957]
[1765126842641,28.18450977,89898.0,89897.0,0.97765957]
[1765126842889,28.18450977,89898.0,89897.0,1.01743794]
[1765126843020,28.18450977,89898.0,89897.0,0.85377048]
[1765126843225,28.18450977,89898.0,89897.0,0.91878452]
[1765126843431,28.18450977,89898.0,89897.0,0.71121948]
[1765126843643,28.18450977,89898.0,89897.0,0.71573515]
[1765126844003,28.18450977,89898.0,89897.0,0.02338565]
[1765126844203,28.18450977,89898.0,89897.0,0.06634132]
[1765126844387,28.18450977,89898.0,89897.0,0.04195567]
[1765126844684,28.18450977,89898.0,89897.0,0.0652932]
[1765126844983,28.18450977,89898.0,89897.0,0.01772]
[1765126845126,28.18550977,89898.0,89897.0,0.01772]
[1765126845325,28.19250977,89898.0,89897.0,0.01772]
[1765126845570,28.18686127,89898.0,89896.0,0.01703123]
[1765126845770,28.18686127,89898.0,89892.0,0.01112446]
[1765126845771,0.04112,89897.0,89892.0,0.01112446]
[1765126845970,28.19550977,89898.0,89894.0,0.01112421]
[1765126846172,28.19450977,89898.0,89894.0,0.01112421]
[1765126846483,28.19450977,89898.0,89895.0,0.01703123]
[1765126846484,0.01112384,89897.0,89895.0,0.01703123]
[1765126846714,28.19550977,89898.0,89895.0,0.02815531]
[1765126847158,28.18550977,89898.0,89895.0,0.02815531]
[1765126847345,28.18450977,89898.0,89895.0,0.25063576]
[1765126847546,28.19850977,89898.0,89895.0,0.25063576]
[1765126847679,28.18650977,89898.0,89895.0,0.25063576]
[1765126847886,28.18650977,89898.0,89894.0,0.23360685]
[1765126848092,28.19650977,89898.0,89896.0,0.2224793]
[1765126848480,28.19650977,89898.0,89895.0,0.02815531]
[1765126848712,28.19650977,89898.0,89896.0,0.2224793]
[1765126849075,28.18450977,89898.0,89896.0,0.2224793]
[1765126849528,28.18750977,89898.0,89896.0,0.2224793]
[1765126849987,28.18750977,89898.0,89897.0,0.02223567]
[1765126849988,28.18450977,89898.0,89897.0,0.02223567]
[1765126850210,28.20050977,89898.0,89897.0,0.02223567]
[1765126850403,28.20050977,89898.0,89896.0,0.2224793]
[1765126850559,28.20050977,89898.0,89897.0,0.0392669]
[1765126850560,28.19750977,89898.0,89897.0,0.0392669]
[1765126850904,28.18450977,89898.0,89897.0,0.38561692]
[1765126851103,28.18650977,89898.0,89897.0,0.38561692]
[1765126851244,28.19650977,89898.0,89897.0,0.38561692]
[1765126851580,28.18650977,89898.0,89897.0,0.38561692]
[1765126851809,28.19586127,89898.0,89897.0,0.38561692]
[1765126852628,28.19386127,89898.0,89897.0,0.38561692]
[1765126852783,28.19486127,89898.0,89897.0,0.38561692]
[1765126852986,28.18686127,89898.0,89897.0,0.38561692]
[1765126853426,28.18686127,89898.0,89897.0,0.40333692]
[1765126853427,28.19386127,89898.0,89897.0,0.40333692]
[1765126853592,28.18686127,89898.0,89897.0,0.3799869]
[1765126853987,28.19486127,89898.0,89897.0,0.01703123]
[1765126854196,28.19486127,89898.0,89897.0,0.03475123]
[1765126854599,28.19486127,89898.0,89895.0,0.01112408]
[1765126854821,0.05224396,89896.0,89895.0,0.01703123]
[1765126855019,0.01112408,89895.0,89890.0,0.0111247]
[1765126855538,0.06195,89894.0,89891.0,0.01112458]
[1765126855912,0.07686,89892.0,89891.0,0.01112458]
[1765126856122,0.0111247,89890.0,89881.0,0.23954711]
[1765126856326,0.05224545,89884.0,89877.0,0.01112631]
[1765126856659,0.05224545,89884.0,89856.0,0.05836242]
[1765126856660,0.01112582,89881.0,89875.0,0.02815779]
[1765126856862,0.01112582,89881.0,89877.0,0.01112631]
[1765126857029,0.01112594,89880.0,89876.0,0.01112644]
[1765126857224,0.01112619,89878.0,89875.0,0.01703123]
[1765126857430,0.04112,89876.0,89874.0,0.01112668]
[1765126857628,0.04112,89876.0,89875.0,0.01703123]
[1765126857876,0.06195,89876.0,89875.0,0.01703123]
[1765126858077,0.10307,89876.0,89875.0,0.01703123]
[1765126858440,0.006,89880.0,89877.0,0.01112631]
[1765126858652,0.006,89880.0,89878.0,0.22252386]
[1765126858858,0.006,89880.0,89879.0,0.02223567]
[1765126859084,0.006,89880.0,89879.0,0.04767349]
[1765126859277,28.19563348,89898.0,89889.0,0.01112483]
[1765126859455,28.18450977,89898.0,89890.0,0.23952538]
[1765126859684,28.18450977,89898.0,89894.0,0.01112421]
[1765126859685,0.03574,89897.0,89894.0,0.01112421]
[1765126859892,0.03574,89897.0,89892.0,0.01112446]
[1765126860087,0.00129146,89896.0,89893.0,0.01112433]
[1765126860287,0.04686384,89897.0,89893.0,0.01112433]
[1765126860489,0.03574,89897.0,89894.0,0.01112421]
[1765126860691,0.01112606,89879.0,89875.0,0.02815779]
[1765126860870,0.05224644,89876.0,89868.0,0.01112743]
[1765126861073,0.27660792,89875.0,89868.0,0.0345731]
[1765126861294,0.34295814,89875.0,89869.0,0.03457297]
[1765126861499,0.22254119,89871.0,89869.0,0.02344567]
[1765126861699,0.08626718,89870.0,89861.0,0.01703123]
[1765126861923,0.22251869,89881.0,89873.0,0.01112681]
[1765126862078,0.04331631,89877.0,89873.0,0.01112681]
[1765126862292,0.01112644,89876.0,89870.0,0.03336285]
[1765126862501,0.0111278,89865.0,89861.0,0.05750767]
[1765126862685,0.01112705,89871.0,89865.0,0.22255551]
[1765126862889,0.01112705,89871.0,89866.0,0.02349616]
[1765126863089,0.22254615,89869.0,89867.0,0.02349616]
[1765126863321,0.04295,89864.0,89863.0,0.06]
[1765126863534,0.04295,89864.0,89863.0,0.08350955]
[1765126863987,0.04295,89864.0,89863.0,0.30607055]
[1765126864408,0.08019535,89956.0,89866.0,0.01112767]
[1765126864626,0.04331569,89882.0,89873.0,0.01112681]
[1765126864796,0.01112619,89878.0,89873.0,0.01112681]
[1765126865000,0.01112631,89877.0,89873.0,0.02350955]
[1765126865178,0.01112631,89877.0,89874.0,0.02350955]
[1765126865377,0.01124395,89876.0,89875.0,0.02350955]
[1765126865697,0.04306751,89876.0,89873.0,0.03463636]
[1765126865899,0.04306751,89876.0,89874.0,0.02350955]
[1765126866124,0.04306751,89876.0,89875.0,0.04054078]
[1765126866307,0.04306751,89876.0,89875.0,0.02350955]
[1765126866526,0.01112693,89872.0,89870.0,0.02353633]
[1765126866723,0.01112705,89871.0,89867.0,0.0404757]
[1765126866952,0.30001852,89871.0,89868.0,0.02353619]
[1765126867224,0.28389615,89869.0,89864.0,0.01112792]
[1765126867383,0.23366837,89871.0,89865.0,0.03466639]
[1765126867585,0.0111273,89869.0,89865.0,0.02353859]
[1765126867906,0.01112718,89870.0,89866.0,0.01112767]
[1765126868109,0.01112718,89870.0,89866.0,0.03466626]
[1765126868488,0.01112718,89870.0,89867.0,0.06]
[1765126868834,0.22554615,89869.0,89868.0,0.02353859]
[1765126869031,0.04295,89868.0,89867.0,0.06]
[1765126869209,0.1093,89868.0,89867.0,0.08352343]
[1765126869607,0.1093,89868.0,89867.0,0.02352343]
[1765126869826,0.23372026,89851.0,89848.0,0.01703123]
[1765126870049,0.03219,89849.0,89848.0,0.01703123]
[1765126870363,0.03219,89849.0,89845.0,0.02352969]
[1765126870364,0.01113003,89847.0,89845.0,0.02352969]
[1765126870564,0.01113003,89847.0,89845.0,0.02352979]
[1765126870874,0.04295,89846.0,89845.0,0.02352979]
[1765126871076,0.01113052,89843.0,89837.0,0.01113127]
[1765126871277,0.01113052,89843.0,89839.0,0.01113102]
[1765126871499,0.01113052,89843.0,89837.0,0.0347835]
[1765126871500,0.01113065,89842.0,89838.0,0.03466582]
[1765126871643,0.01113065,89842.0,89839.0,0.01113102]
[1765126871839,0.01113027,89845.0,89840.0,0.01113089]
[1765126872039,0.01113027,89845.0,89841.0,0.01113077]
[1765126872242,0.22262075,89839.0,89837.0,0.00411755]
[1765126872443,0.22262075,89839.0,89837.0,0.00011755]
[1765126872444,0.04608,89838.0,89837.0,0.00011755]
[1765126872652,0.11072,89838.0,89837.0,0.00011755]
[1765126873497,0.01113077,89841.0,89837.0,0.00511755]
[1765126873706,0.22261473,89842.0,89839.0,0.01113102]
[1765126873707,0.01113065,89842.0,89839.0,0.01113102]
[1765126873911,0.01113089,89840.0,89837.0,0.01624882]
[1765126874115,0.22262046,89839.0,89837.0,0.00511755]
[1765126874319,0.06464,89852.0,89846.0,0.01113015]
[1765126874510,0.22257134,89859.0,89852.0,0.01112941]
[1765126874511,0.03498,89855.0,89852.0,0.01112941]
[1765126874727,0.03498,89855.0,89853.0,0.22258577]
[1765126874885,0.03498,89863.0,89860.0,0.01112842]
[1765126875085,0.03498,89863.0,89852.0,0.01112941]
[1765126875086,0.01112879,89857.0,89852.0,0.01112941]
[1765126875285,0.01112891,89856.0,89851.0,0.01112953]
[1765126875486,0.01112891,89856.0,89851.0,0.03464659]
[1765126875686,0.04608,89852.0,89851.0,0.02351706]
[1765126875909,0.01113065,89842.0,89838.0,0.01113114]
[1765126876111,0.01113015,89846.0,89841.0,0.23374604]
[1765126876426,0.01113003,89847.0,89844.0,0.0111304]
[1765126876593,0.22260807,89844.0,89843.0,0.0235226]
[1765126876790,0.01113077,89841.0,89838.0,0.01113114]
[1765126876988,0.04608,89838.0,89837.0,0.00011755]
[1765126877429,0.11072,89838.0,89837.0,0.00011755]
[1765126877890,0.1457,89838.0,89837.0,0.00011755]
[1765126878219,0.1457,89838.0,89837.0,0.00111755]
[1765126878424,0.1457,89838.0,89837.0,0.00011755]
[1765126878864,0.1477,89838.0,89837.0,0.00011755]
[1765126879094,0.21022299,89838.0,89837.0,0.00011755]
[1765126879292,0.23042697,89838.0,89837.0,0.00011755]
[1765126879499,0.20822299,89838.0,89837.0,0.00311755]
[1765126879716,0.23142697,89838.0,89837.0,0.00311755]
[1765126880144,0.23142697,89838.0,89814.0,0.01703123]
[1765126880145,0.24485914,89825.0,89814.0,0.01703123]
[1765126880346,0.22274443,89789.0,89787.0,0.02934815]
[1765126880491,0.22274443,89789.0,89785.0,0.00251288]
[1765126880492,0.03498,89786.0,89785.0,0.01365059]
[1765126880694,0.08106,89786.0,89785.0,0.02604619]
[1765126880895,0.1457,89786.0,89785.0,0.00251288]
[1765126881531,0.1457,89786.0,89785.0,0.00790513]
[1765126881770,0.1457,89786.0,89785.0,0.00290513]
[1765126882091,0.1467,89786.0,89785.0,0.00290513]
[1765126882526,0.1497,89786.0,89785.0,0.00290513]
[1765126884222,0.03898,89786.0,89785.0,0.00290513]
[1765126884523,0.08506,89786.0,89785.0,0.00290513]
[1765126884718,0.1497,89786.0,89785.0,0.00290513]
[1765126885474,0.08506,89786.0,89785.0,0.00290513]
[1765126885663,0.1497,89786.0,89785.0,0.00290513]
[1765126885841,0.03898,89786.0,89785.0,0.00290513]
[1765126886068,0.08506,89786.0,89785.0,0.00290513]
[1765126886203,0.1497,89786.0,89785.0,0.00290513]
[1765126886408,0.08506,89786.0,89785.0,0.00290513]
[1765126886832,0.03898,89786.0,89785.0,0.004518]
[1765126887035,0.004,89786.0,89785.0,0.004518]
[1765126891510,0.11472,89786.0,89785.0,0.00290513]
[1765126891927,0.11472,89786.0,89763.0,0.02934815]
[1765126891928,0.22282136,89758.0,89757.0,0.03888675]
[1765126892040,0.22284619,89748.0,89741.0,0.01114317]
[1765126892267,0.01114243,89747.0,89741.0,0.01114317]
[1765126892473,0.0111428,89744.0,89741.0,0.00011763]
[1765126892878,0.0111428,89744.0,89743.0,0.01703123]
[1765126893132,0.23399922,89744.0,89741.0,0.00011763]
[1765126893550,0.26894109,89742.0,89741.0,0.00011763]
[1765126893963,0.33358109,89742.0,89741.0,0.00011763]
[1765126894885,0.33358109,89742.0,89741.0,0.00111763]
[1765126895450,0.33358109,89742.0,89741.0,0.00511763]
[1765126895651,0.26894109,89742.0,89741.0,0.00511763]
[1765126895885,0.23399922,89744.0,89741.0,0.00511763]
[1765126896254,0.23399922,89744.0,89741.0,0.00411763]
[1765126896465,0.001,89742.0,89741.0,0.00411763]
[1765126896666,0.001,89742.0,89741.0,0.00011763]
[1765126896867,0.001,89742.0,89741.0,0.00311763]
[1765126897141,0.23399922,89744.0,89741.0,0.00311763]
[1765126897304,0.23399922,89744.0,89741.0,0.00011763]
[1765126897648,0.26894109,89742.0,89741.0,0.00311763]
[1765126897764,0.22286109,89742.0,89741.0,0.00011763]
[1765126898159,0.22286109,89742.0,89741.0,0.00644203]
[1765126898399,0.33358109,89742.0,89741.0,0.00644203]
[1765126898804,0.22286109,89742.0,89741.0,0.00644203]
[1765126899265,0.22286109,89742.0,89741.0,0.00544203]
[1765126899506,0.22286109,89742.0,89741.0,0.00144203]
[1765126899888,0.22286109,89742.0,89741.0,0.00444203]
[1765126900916,0.2228586,89743.0,89741.0,0.0060549]
[1765126901147,0.2228586,89743.0,89741.0,0.0047305]
[1765126902634,0.002,89742.0,89741.0,0.0017305]
[1765126903197,0.2228586,89743.0,89741.0,0.0017305]
[1765126903549,0.2238586,89743.0,89741.0,0.0027305]
[1765126903751,0.2238586,89743.0,89741.0,0.0017305]
[1765126903953,0.2228586,89743.0,89741.0,0.0017305]
[1765126904149,0.004,89742.0,89741.0,0.0017305]
[1765126904384,0.003,89742.0,89741.0,0.0017305]